bitfinex/quotes_BTCUSD_20260215
["timestamp","ask_amount","ask_price","bid_price","bid_amount"]
[1771126702100,0.00012,69310.0,69283.0,0.05032011]
[1771126702101,0.02404691,69306.0,69283.0,0.05032011]
[1771126702254,0.07214825,69302.0,69293.0,0.05032011]
[1771126702454,0.07215571,69295.0,69286.0,0.09535105]
[1771126702658,0.01191155,69299.0,69288.0,0.05032011]
[1771126702867,0.08406287,69299.0,69288.0,0.05032011]
[1771126703066,0.07215215,69298.0,69287.0,0.07216352]
[1771126703268,4e-05,69298.0,69287.0,0.05028011]
[1771126703490,0.02361036,69309.0,69293.0,0.002]
[1771126703698,0.0721428,69307.0,69303.0,0.05027211]
[1771126703897,0.02361036,69309.0,69299.0,0.05027211]
[1771126704218,0.02361036,69309.0,69302.0,0.05027211]
[1771126704421,0.07214706,69303.0,69293.0,0.07215701]
[1771126704669,0.07214706,69303.0,69294.0,0.05027211]
[1771126704884,0.07214706,69303.0,69293.0,0.001]
[1771126704885,0.27215047,69300.0,69293.0,0.001]
[1771126704994,0.2,69300.0,69293.0,0.04929609]
[1771126705585,0.2,69300.0,69294.0,0.04829609]
[1771126705735,0.00043655,69306.0,69298.0,0.07215179]
[1771126705927,0.00043655,69306.0,69298.0,0.12044788]
[1771126706128,0.00043655,69306.0,69299.0,0.002]
[1771126706331,1e-08,69306.0,69305.0,0.12044095]
[1771126706536,0.04502566,69305.0,69290.0,0.00012]
[1771126706740,0.0721459,69304.0,69294.0,0.006]
[1771126707091,0.02361036,69305.0,69294.0,0.006]
[1771126707292,0.0004,69303.0,69294.0,0.006]
[1771126707491,0.02361036,69302.0,69290.0,0.00012]
[1771126708046,0.07215573,69295.0,69290.0,0.00012]
[1771126708250,0.07215646,69294.0,69290.0,0.04841609]
[1771126708452,0.07215941,69292.0,69290.0,0.04841609]
[1771126708658,0.07215944,69291.0,69290.0,0.00012]
[1771126710638,0.07215944,69291.0,69290.0,0.00312]
[1771126710817,0.07215944,69291.0,69290.0,0.00012]
[1771126711268,0.00110929,69290.0,69280.0,0.02354649]
[1771126711410,0.04610317,69302.0,69280.0,0.02354649]
[1771126711411,0.0004,69319.0,69299.0,0.07215007]
[1771126711613,0.0004,69319.0,69313.0,0.07213654]
[1771126711843,0.0004,69319.0,69317.0,0.05908309]
[1771126712018,0.00012,69330.0,69311.0,0.04829609]
[1771126712217,0.0004,69334.0,69324.0,0.07212476]
[1771126712417,0.0004,69334.0,69322.0,0.28850519]
[1771126712646,0.02361036,69345.0,69326.0,0.04829609]
[1771126712853,0.02361036,69334.0,69320.0,0.00012]
[1771126713047,0.00012,69330.0,69313.0,0.04829609]
[1771126713263,0.0721293,69320.0,69310.0,0.00012]
[1771126713449,0.02361036,69323.0,69310.0,0.00012]
[1771126713676,0.02361036,69323.0,69301.0,0.0228844]
[1771126713677,0.02361036,69318.0,69290.0,0.0003264]
[1771126713814,0.34448511,69320.0,69290.0,0.0003264]
[1771126713815,0.02361036,69313.0,69304.0,0.00013069]
[1771126714014,4e-05,69314.0,69305.0,0.07214486]
[1771126714222,0.00028,69313.0,69304.0,0.00013069]
[1771126714427,4e-05,69314.0,69305.0,0.04829609]
[1771126714623,4e-05,69314.0,69304.0,0.00013069]
[1771126714624,0.00032,69314.0,69304.0,0.00013069]
[1771126714833,4e-05,69314.0,69304.0,0.04842678]
[1771126715033,0.07213749,69313.0,69304.0,0.04842678]
[1771126715274,0.07213919,69311.0,69304.0,0.00013069]
[1771126715649,0.00032,69314.0,69304.0,0.00013069]
[1771126716055,0.00332,69314.0,69305.0,0.04829609]
[1771126716461,0.07213798,69312.0,69305.0,0.04829609]
[1771126716685,0.07241658,69313.0,69304.0,0.00013069]
[1771126716855,0.07213916,69311.0,69304.0,0.00013069]
[1771126717270,0.00028,69310.0,69304.0,0.00013069]
[1771126717491,0.07214314,69307.0,69304.0,0.00013069]
[1771126718293,4e-05,69306.0,69304.0,0.00013069]
[1771126719814,0.00032,69306.0,69304.0,0.00013069]
[1771126720228,4e-05,69308.0,69304.0,0.00013069]
[1771126720454,0.00032,69308.0,69304.0,0.00013069]
[1771126720668,0.02361036,69307.0,69296.0,4e-05]
[1771126720869,0.00041081,69307.0,69296.0,4e-05]
[1771126721196,0.00013081,69307.0,69296.0,4e-05]
[1771126721420,0.00041081,69307.0,69300.0,0.07215005]
[1771126721574,0.00041081,69307.0,69301.0,0.04703249]
[1771126721976,0.00041081,69307.0,69297.0,0.04703249]
[1771126722208,0.00013081,69307.0,69298.0,0.04703249]
[1771126722381,0.00016,69310.0,69298.0,0.04703249]
[1771126722382,0.00028,69310.0,69307.0,0.04703249]
[1771126722596,4e-05,69312.0,69300.0,0.00016]
[1771126722830,4e-05,69312.0,69300.0,0.00059655]
[1771126722831,0.002,69307.0,69300.0,0.00059655]
[1771126723120,4e-05,69312.0,69300.0,0.00059655]
[1771126723439,0.07217772,69312.0,69303.0,0.07214622]
[1771126723662,0.07217772,69312.0,69304.0,0.0002]
[1771126723819,4e-05,69312.0,69304.0,0.0723456]
[1771126724023,0.09504152,69311.0,69304.0,0.0002]
[1771126724221,0.0229029,69311.0,69304.0,0.0002]
[1771126724388,0.0229029,69311.0,69304.0,0.0723452]
[1771126724587,4e-05,69312.0,69304.0,0.07234581]
[1771126724846,0.001,69307.0,69304.0,0.0002]
[1771126725055,4e-05,69312.0,69307.0,0.07214264]
[1771126725347,4e-05,69312.0,69305.0,0.11931998]
[1771126725551,4e-05,69312.0,69305.0,0.04717539]
[1771126725753,4e-05,69312.0,69309.0,0.07214045]
[1771126725976,0.0229029,69332.0,69317.0,0.07213237]
[1771126726174,0.0004,69334.0,69320.0,0.07212836]
[1771126726379,0.07251566,69334.0,69321.0,0.07212821]
[1771126726576,0.0004,69334.0,69320.0,0.04717539]
[1771126726927,0.07211748,69332.0,69320.0,0.04717539]
[1771126727128,0.0004,69334.0,69320.0,0.04717539]
[1771126727331,0.07211781,69331.0,69320.0,0.07212923]
[1771126727531,0.07212082,69329.0,69321.0,0.0721281]
[1771126727782,0.07212082,69329.0,69318.0,0.11930671]
[1771126728103,0.0229029,69333.0,69314.0,0.34512]
[1771126728305,0.0024,69327.0,69321.0,0.07212756]
[1771126728504,0.0004,69327.0,69321.0,0.07212756]
[1771126728715,0.0004,69327.0,69320.0,0.07212827]
[1771126728716,0.0024,69327.0,69320.0,0.07212827]
[1771126729117,0.0004,69327.0,69318.0,0.04717539]
[1771126729318,0.0004,69327.0,69319.0,0.07213029]
[1771126729529,0.0004,69327.0,69318.0,0.04717539]
[1771126729687,4e-05,69324.0,69321.0,0.07212734]
[1771126729919,0.0229029,69339.0,69327.0,0.072121]
[1771126730123,0.0229029,69339.0,69323.0,0.04717539]
[1771126730124,0.07211184,69337.0,69329.0,0.07211989]
[1771126730327,0.07211184,69337.0,69324.0,0.28850037]
[1771126730328,0.07222896,69340.0,69324.0,0.04717539]
[1771126730548,0.0229029,69339.0,69321.0,0.07212821]
[1771126730770,0.07211403,69335.0,69327.0,0.07212183]
[1771126730945,0.0229029,69339.0,69323.0,0.04717539]
[1771126731148,0.00012,69340.0,69333.0,0.07211573]
[1771126731328,0.00012,69340.0,69321.0,0.00013089]
[1771126731530,0.00012,69340.0,69332.0,0.07211674]
[1771126731803,0.00012,69340.0,69326.0,0.04717539]
[1771126731956,0.00012,69350.0,69336.0,0.04717539]
[1771126732308,0.00012,69350.0,69345.0,0.07210275]
[1771126732483,0.00012,69350.0,69338.0,0.04717539]
[1771126732659,0.00012,69350.0,69345.0,0.07210296]
[1771126732866,0.072103,69346.0,69337.0,0.07211053]
[1771126733045,0.00512,69350.0,69333.0,0.04717539]
[1771126733240,4e-05,69346.0,69333.0,0.28845876]
[1771126733450,0.0004,69341.0,69334.0,0.04717539]
[1771126733671,0.0004,69341.0,69336.0,0.07211165]
[1771126733867,0.0004,69341.0,69338.0,0.07211025]
[1771126734605,0.0004,69341.0,69339.0,0.07210933]
[1771126734914,0.0004,69341.0,69339.0,0.07210922]
[1771126735060,0.0004,69341.0,69340.0,0.07210845]
[1771126735266,0.0034,69341.0,69340.0,0.07210845]
[1771126735465,1e-08,69348.0,69345.0,0.07210325]
[1771126735664,1e-08,69348.0,69340.0,0.07210845]
[1771126735893,1e-08,69348.0,69346.0,0.07210133]
[1771126736133,1e-08,69350.0,69347.0,0.07210117]
[1771126736305,1e-08,69350.0,69349.0,0.07209909]
[1771126736506,1e-08,69352.0,69351.0,0.07209701]
[1771126736673,0.0003483,69357.0,69348.0,0.33557337]
[1771126736674,0.0003483,69357.0,69348.0,0.04717539]
[1771126737115,0.0003483,69357.0,69355.0,0.07209285]
[1771126737738,0.0003483,69357.0,69354.0,0.07209365]
[1771126737913,0.07243915,69357.0,69349.0,0.07209835]
[1771126738855,0.0003483,69357.0,69344.0,0.07210429]
[1771126739058,0.0023483,69357.0,69344.0,0.00013086]
[1771126739273,0.0003483,69357.0,69354.0,0.07209378]
[1771126739563,0.0023483,69357.0,69349.0,0.07209909]
[1771126739770,0.07443923,69357.0,69349.0,0.07209909]
[1771126739989,0.0004,69356.0,69349.0,0.07209909]
[1771126740191,0.0004,69356.0,69350.0,0.07209798]
[1771126740325,0.0004,69356.0,69348.0,0.04717539]
[1771126740522,0.0004,69356.0,69344.0,0.00013086]
[1771126740728,0.28839154,69351.0,69340.0,0.00012]
[1771126740964,0.0229029,69349.0,69340.0,0.00012]
[1771126741174,0.07210741,69341.0,69340.0,0.00012]
[1771126741379,0.07210741,69341.0,69333.0,0.07211562]
[1771126741551,0.0721085,69340.0,69332.0,0.07211611]
[1771126741764,0.07210768,69341.0,69333.0,0.07211496]
[1771126741986,0.07210768,69341.0,69334.0,0.07211452]
[1771126742394,0.07210768,69341.0,69333.0,0.0721154]
[1771126742617,0.07210865,69340.0,69333.0,0.0721154]
[1771126742781,0.06900865,69340.0,69332.0,0.07211653]
[1771126743188,0.06900865,69340.0,69332.0,0.07211589]
[1771126743375,0.06900865,69340.0,69333.0,0.07211564]
[1771126743584,0.07211781,69331.0,69320.0,0.00012]
[1771126743779,0.0229029,69335.0,69321.0,0.0721282]
[1771126743780,0.0229029,69332.0,69321.0,0.0721282]
[1771126744004,0.0229029,69332.0,69320.0,0.00012]
[1771126744384,0.07211986,69330.0,69321.0,0.07212775]
[1771126744585,0.0721187,69331.0,69321.0,0.07212775]
[1771126745227,0.0229029,69332.0,69320.0,0.07224901]
[1771126745474,0.07212092,69329.0,69320.0,0.07224844]
[1771126745758,0.07212092,69329.0,69321.0,0.07212807]
[1771126745958,0.07212092,69329.0,69320.0,0.00012]
[1771126746114,0.07212195,69328.0,69320.0,0.00012]
[1771126746835,0.07212195,69328.0,69314.0,0.31136435]
[1771126746836,0.0229029,69327.0,69313.0,0.07213637]
[1771126747038,0.07212405,69325.0,69310.0,0.0722596]
[1771126747206,0.0229029,69324.0,69313.0,0.07213621]
[1771126747410,0.0229029,69323.0,69302.0,0.04717539]
[1771126747615,0.09503576,69317.0,69309.0,0.07214031]
[1771126747834,0.0229029,69317.0,69310.0,0.07213941]
[1771126748212,0.0229029,69317.0,69302.0,0.04717539]
[1771126748410,0.09503657,69316.0,69313.0,0.002]
[1771126748615,0.07213549,69314.0,69305.0,0.07214403]
[1771126748892,0.07213673,69313.0,69305.0,0.06904486]
[1771126749076,0.07213515,69315.0,69310.0,0.003]
[1771126749298,0.0229029,69314.0,69310.0,0.003]
[1771126749975,0.09503345,69319.0,69310.0,0.07513885]
[1771126750179,0.07213163,69318.0,69310.0,0.07213938]
[1771126750548,0.0229029,69317.0,69313.0,0.005]
[1771126750748,0.07213369,69316.0,69308.0,0.07214145]
[1771126751206,0.07213388,69316.0,69308.0,0.07209508]
[1771126751567,0.07213459,69315.0,69313.0,0.003]
[1771126751970,0.09503839,69314.0,69313.0,0.003]
[1771126752375,0.07213744,69313.0,69305.0,0.07214411]
[1771126752996,0.07213744,69313.0,69306.0,0.07214379]
[1771126753225,0.09581932,69313.0,69306.0,0.07214379]
[1771126753521,0.02368188,69313.0,69306.0,0.07214379]
[1771126753696,0.02368188,69313.0,69309.0,0.07213978]
[1771126753912,0.02368188,69313.0,69309.0,0.0721407]
[1771126754121,0.02368188,69313.0,69304.0,0.0002]
[1771126754362,0.02368188,69313.0,69307.0,0.07214243]
[1771126755095,0.02368188,69313.0,69309.0,0.006]
[1771126755293,0.02368188,69313.0,69309.0,0.07213984]
[1771126755539,0.02368188,69313.0,69310.0,0.07213945]
[1771126755716,0.02368188,69313.0,69309.0,0.0002]
[1771126756319,0.16652,69330.0,69307.0,0.0771426]
[1771126756320,0.07213839,69312.0,69307.0,0.005]
[1771126756545,0.02368188,69311.0,69307.0,0.005]
[1771126756787,0.02368188,69311.0,69305.0,0.07214402]
[1771126756930,0.02368188,69311.0,69307.0,0.07214274]
[1771126757142,0.02368188,69311.0,69309.0,0.006]
[1771126757339,0.02368188,69311.0,69304.0,0.0002]
[1771126757554,0.02368188,69311.0,69306.0,0.0721431]
[1771126757775,0.02368188,69311.0,69306.0,0.07227399]
[1771126758065,0.02368188,69311.0,69307.0,0.007]
[1771126758265,0.07213572,69314.0,69306.0,0.07227399]
[1771126758467,0.02368188,69323.0,69307.0,0.02257846]
[1771126758681,0.02368188,69323.0,69308.0,0.02257846]
[1771126758881,0.07213107,69319.0,69311.0,0.07213835]
[1771126759054,0.07213107,69319.0,69311.0,0.07213791]
[1771126759222,0.00012,69320.0,69314.0,0.07213527]
[1771126759423,0.00012,69320.0,69315.0,0.07213373]
[1771126759718,4e-05,69322.0,69321.0,0.07212821]
[1771126759930,4e-05,69326.0,69314.0,4e-05]
[1771126760136,1e-08,69338.0,69323.0,0.02257846]
[1771126760366,1e-08,69338.0,69329.0,0.07211957]
[1771126760598,0.07211123,69338.0,69328.0,0.07212086]
[1771126760794,0.07211123,69338.0,69326.0,4e-05]
[1771126760795,1e-08,69338.0,69326.0,4e-05]
[1771126761018,1e-08,69338.0,69337.0,0.07211157]
[1771126761236,1e-08,69338.0,69336.0,0.07211236]
[1771126761443,0.0004,69348.0,69335.0,0.05371872]
[1771126761651,0.0004,69348.0,69330.0,0.00016]
[1771126761652,0.07210286,69346.0,69330.0,0.00016]
[1771126761847,0.07210286,69346.0,69337.0,0.07211078]
[1771126762066,0.02368188,69344.0,69337.0,0.07211069]
[1771126762507,0.07210545,69343.0,69336.0,0.07211236]
[1771126762716,0.02368188,69343.0,69336.0,0.07211261]
[1771126762887,0.02368188,69343.0,69338.0,0.07211023]
[1771126763113,0.0721028,69346.0,69338.0,0.07211023]
[1771126763394,4e-05,69342.0,69341.0,0.07210741]
[1771126763956,4e-05,69342.0,69338.0,0.07210865]
[1771126764566,4e-05,69342.0,69333.0,0.07211573]
[1771126764785,0.07214712,69342.0,69326.0,0.05375872]
[1771126764984,4e-05,69342.0,69329.0,0.02257846]
[1771126765184,4e-05,69342.0,69340.0,0.0721083]
[1771126765768,1e-08,69345.0,69344.0,0.07210429]
[1771126765967,1e-08,69350.0,69349.0,0.07209909]
[1771126766406,1e-08,69350.0,69340.0,0.00012]
[1771126766646,0.0004,69393.0,69360.0,0.02257846]
[1771126766848,0.02368188,69387.0,69385.0,0.07206102]
[1771126767018,0.05276377,69384.0,69370.0,0.28842491]
[1771126767219,0.02368188,69381.0,69370.0,0.00012]
[1771126767557,0.00012,69390.0,69370.0,0.00012]
[1771126767744,0.00055611,69390.0,69384.0,0.07206262]
[1771126768183,0.014,69387.0,69384.0,0.07206218]
[1771126768313,0.02368188,69388.0,69370.0,0.00012]
[1771126768517,0.02368188,69384.0,69374.0,0.07207225]
[1771126768764,0.02368188,69384.0,69370.0,0.00012]
[1771126768970,0.07261279,69390.0,69381.0,0.07206493]
[1771126769260,0.00055611,69390.0,69376.0,0.02257846]
[1771126769464,0.00055611,69390.0,69380.0,0.07206666]
[1771126769602,0.02368188,69391.0,69380.0,0.00012]
[1771126769802,0.02368188,69388.0,69371.0,0.0720754]
[1771126770008,0.07206561,69382.0,69372.0,0.07207507]
[1771126770215,0.07206561,69382.0,69373.0,0.07207381]
[1771126770420,0.02368188,69380.0,69370.0,0.00012]
[1771126770626,0.07206791,69379.0,69370.0,0.00012]
[1771126770824,0.09574979,69379.0,69370.0,0.07219698]
[1771126771235,0.09574979,69379.0,69371.0,0.07207596]
[1771126771510,0.02368188,69379.0,69360.0,0.00012]
[1771126771801,0.07207227,69375.0,69366.0,0.07208093]
[1771126772004,4.5e-05,69377.0,69361.0,0.28834326]
[1771126772232,4.5e-05,69377.0,69360.0,0.34454432]
[1771126772435,0.00012,69380.0,69379.0,0.07206791]
[1771126772604,0.00043584,69388.0,69377.0,0.07206902]
[1771126772605,0.00043584,69388.0,69380.0,0.07206681]
[1771126772806,0.07249462,69388.0,69377.0,0.07206956]
[1771126772986,0.00043584,69388.0,69377.0,0.07206956]
[1771126773184,0.00043584,69388.0,69381.0,0.0720653]
[1771126773348,0.07249483,69388.0,69379.0,0.07206749]
[1771126774066,0.07449483,69388.0,69375.0,0.28828475]
[1771126774264,0.0723996,69396.0,69380.0,0.00012]
[1771126774493,0.07207065,69377.0,69370.0,0.00012]
[1771126774712,0.07250699,69377.0,69370.0,0.00012]
[1771126774908,0.0720713,69376.0,69370.0,0.00012]
[1771126775131,0.00043611,69377.0,69370.0,0.00012]
[1771126775271,0.00043611,69377.0,69370.0,0.07219683]
[1771126775466,0.00043611,69377.0,69370.0,0.00012]
[1771126776529,0.00043611,69377.0,69371.0,0.07207622]
[1771126776740,0.00043611,69377.0,69373.0,0.07207365]
[1771126776939,0.00043611,69377.0,69376.0,0.07207103]
[1771126777242,0.09574302,69386.0,69377.0,0.07206899]
[1771126777243,0.00900787,69380.0,69377.0,0.07206899]
[1771126777468,0.00900787,69380.0,69377.0,0.00013079]
[1771126777791,0.00900787,69380.0,69377.0,0.07220043]
[1771126778187,0.00900787,69380.0,69377.0,0.07204043]
[1771126778389,4e-05,69378.0,69377.0,0.07204043]
[1771126779315,4e-05,69378.0,69372.0,0.07207513]
[1771126779554,0.00017068,69378.0,69372.0,0.07207513]
[1771126779758,0.00017068,69378.0,69372.0,0.072075]
[1771126780383,0.00017068,69378.0,69373.0,0.07207408]
[1771126780714,0.07207203,69376.0,69370.0,0.00012]
[1771126780832,0.0004,69377.0,69370.0,0.00012]
[1771126781278,0.0004,69377.0,69372.0,0.07207447]
[1771126781474,0.0004,69377.0,69370.0,0.07219643]
[1771126781672,0.0004,69377.0,69371.0,0.07207585]
[1771126781885,0.003,69376.0,69375.0,0.07207207]
[1771126782046,0.003,69376.0,69374.0,0.07207229]
[1771126782254,0.0004,69377.0,69376.0,0.07207103]
[1771126782654,4e-05,69382.0,69380.0,0.06545235]
[1771126782655,1e-08,69382.0,69380.0,0.06545235]
[1771126783105,1e-08,69382.0,69381.0,0.06305796]
[1771126783961,1e-08,69382.0,69372.0,0.28829977]
[1771126783962,4e-05,69388.0,69369.0,0.28830491]
[1771126784174,8.5e-05,69388.0,69379.0,0.06671661]
[1771126784319,8.5e-05,69388.0,69386.0,0.07205983]
[1771126784721,0.07206135,69386.0,69378.0,0.07206849]
[1771126784932,0.02407791,69388.0,69381.0,0.07406505]
[1771126785134,4e-05,69388.0,69381.0,0.002]
[1771126785450,0.06206152,69386.0,69381.0,0.002]
[1771126785627,0.07206189,69385.0,69381.0,0.002]
[1771126785811,0.02403791,69384.0,69381.0,0.002]
[1771126786215,0.09610064,69384.0,69377.0,0.07206979]
[1771126786619,0.02403791,69384.0,69377.0,0.07206979]
[1771126787056,0.02403791,69384.0,69378.0,0.07206885]
[1771126787497,0.02403791,69384.0,69371.0,0.02323642]
[1771126787498,0.02403791,69384.0,69379.0,0.07206692]
[1771126787611,0.02403791,69384.0,69379.0,0.07206708]
[1771126788368,0.00044,69388.0,69372.0,0.06671661]
[1771126788590,0.0003237,69392.0,69390.0,0.07205556]
[1771126788982,0.0003237,69392.0,69389.0,0.07205743]
[1771126789183,0.0003237,69392.0,69389.0,0.07205741]
[1771126789415,0.28817779,69402.0,69381.0,0.28826147]
[1771126789416,0.00012,69420.0,69382.0,0.68884864]
[1771126789620,0.00012,69420.0,69410.0,0.07203565]
[1771126789621,0.07202741,69419.0,69410.0,0.07203565]
[1771126789893,0.02403791,69418.0,69406.0,0.07203966]
[1771126790095,0.02403791,69418.0,69401.0,0.07204507]
[1771126790296,0.02403791,69418.0,69416.0,0.07202939]
[1771126790526,0.0005764,69428.0,69410.0,0.00012]
[1771126790681,0.001,69419.0,69410.0,0.00012]
[1771126790880,0.02403791,69427.0,69421.0,0.07202332]
[1771126791101,0.02403791,69427.0,69422.0,0.07202293]
[1771126791303,0.02403791,69427.0,69423.0,0.07202217]
[1771126791534,0.02403791,69427.0,69424.0,0.07202107]
[1771126791686,0.00070723,69428.0,69424.0,0.07202107]
[1771126791905,0.00070723,69428.0,69416.0,0.003]
[1771126792126,0.02403791,69427.0,69416.0,0.003]
[1771126792334,0.2881126,69418.0,69392.0,0.09232]
[1771126792547,0.02403791,69410.0,69404.0,0.07204116]
[1771126793555,0.07203443,69412.0,69404.0,0.07204116]
[1771126793993,0.07203087,69415.0,69405.0,0.07204018]
[1771126794168,0.02403791,69416.0,69409.0,0.07203591]
[1771126794582,0.02403791,69416.0,69407.0,0.07203784]
[1771126794782,0.07203443,69412.0,69404.0,0.07504191]
[1771126795215,0.07203826,69408.0,69404.0,0.003]
[1771126795409,0.02403791,69407.0,69404.0,0.003]
[1771126795612,0.02403791,69407.0,69403.0,0.07204299]
[1771126796394,0.02403791,69407.0,69402.0,0.07204393]
[1771126796590,0.02416869,69407.0,69405.0,0.07204074]
[1771126796819,0.02416869,69407.0,69400.0,0.07216552]
[1771126797032,0.02416869,69407.0,69402.0,0.07204315]
[1771126797235,0.02416869,69407.0,69403.0,0.004]
[1771126797535,0.02416869,69407.0,69400.0,0.07216552]
[1771126797536,0.00013078,69407.0,69400.0,0.00012]
[1771126797859,0.02403791,69403.0,69400.0,0.00012]
[1771126798052,0.00012,69420.0,69400.0,0.00012]
[1771126798228,0.07236453,69473.0,69420.0,3e-05]
[1771126798229,4e-05,69438.0,69420.0,3e-05]
[1771126798404,0.06461697,69430.0,69420.0,3e-05]
[1771126798605,0.06465697,69430.0,69418.0,0.28812556]
[1771126798838,0.02403791,69429.0,69418.0,2e-05]
[1771126799040,0.06461697,69426.0,69410.0,0.00012]
[1771126799271,0.02403791,69423.0,69411.0,0.07203469]
[1771126799651,0.02403791,69423.0,69422.0,0.07202232]
[1771126799852,0.02403791,69423.0,69422.0,0.07104231]
[1771126800466,0.02403791,69423.0,69421.0,0.07202427]
[1771126800663,0.02403791,69423.0,69422.0,0.07202327]
[1771126801126,0.02403791,69423.0,69422.0,0.07302327]
[1771126802228,0.02403791,69423.0,69422.0,0.07202327]
[1771126802564,0.02503791,69423.0,69422.0,0.07202327]
[1771126802767,0.02403791,69423.0,69422.0,0.07202327]
[1771126802974,0.06465697,69426.0,69410.0,0.00012]
[1771126802975,0.06461697,69425.0,69410.0,0.00032]
[1771126803315,0.06461697,69420.0,69410.0,0.00032]
[1771126803525,0.02403791,69419.0,69415.0,0.07202956]
[1771126803691,0.02403791,69419.0,69411.0,0.28813876]
[1771126804013,0.02403791,69419.0,69416.0,0.07202848]
[1771126804168,0.02403791,69419.0,69412.0,0.07203338]
[1771126804375,0.02403791,69419.0,69410.0,0.28846007]
[1771126804564,0.02403791,69419.0,69413.0,0.07203194]
[1771126804760,0.02403791,69419.0,69411.0,0.072034]
[1771126805008,0.02403791,69419.0,69412.0,0.07203283]
[1771126805213,0.13664237,69420.0,69410.0,0.00032]
[1771126805214,0.07203057,69415.0,69410.0,0.00032]
[1771126805473,0.02403791,69414.0,69413.0,0.07203261]
[1771126806021,0.0004,69427.0,69410.0,0.00032]
[1771126806218,4e-05,69432.0,69421.0,0.07202417]
[1771126806411,0.07201577,69430.0,69422.0,0.07202305]
[1771126806607,0.02403791,69431.0,69420.0,4e-05]
[1771126807041,0.02403791,69431.0,69429.0,0.07201503]
[1771126807885,0.00017073,69432.0,69429.0,0.07201503]
[1771126808282,0.00017073,69432.0,69431.0,0.07201394]
[1771126809268,0.00017073,69432.0,69430.0,0.07201475]
[1771126809420,0.00017073,69432.0,69431.0,0.07201394]
[1771126809860,0.00017073,69432.0,69431.0,0.07601394]
[1771126810136,0.00017073,69432.0,69431.0,0.004]
[1771126810326,0.00044,69434.0,69431.0,0.004]
[1771126810527,0.02403791,69411.0,69390.0,0.00012]
[1771126810791,4e-05,69412.0,69390.0,1.073e-05]
[1771126810792,0.00012,69400.0,69390.0,1.073e-05]
[1771126810959,0.00012,69400.0,69391.0,0.0002]
[1771126811174,0.02403791,69399.0,69391.0,0.0002]
[1771126811329,0.02331191,69399.0,69391.0,0.0002]
[1771126811530,0.09608982,69395.0,69391.0,0.0002]
[1771126811735,0.07205233,69394.0,69391.0,0.0002]
[1771126812144,0.07205372,69393.0,69391.0,0.0002]
[1771126812744,0.34516,69397.0,69380.0,0.00012]
[1771126812745,0.06461697,69391.0,69380.0,0.00012]
[1771126812994,0.07206455,69383.0,69372.0,0.072075]
[1771126813195,0.00012,69390.0,69371.0,0.0003384]
[1771126813196,0.36980863,69385.0,69371.0,0.0003384]
[1771126813403,0.44187031,69385.0,69372.0,0.07207518]
[1771126813819,0.44187031,69385.0,69375.0,0.07207195]
[1771126814204,0.07206276,69384.0,69373.0,0.07207339]
[1771126814625,0.07206276,69384.0,69371.0,0.07254514]
[1771126814816,0.07206376,69383.0,69372.0,0.07207466]
[1771126815019,0.36980863,69385.0,69372.0,0.07207466]
[1771126815197,0.44187133,69385.0,69374.0,0.0720722]
[1771126815410,0.44387133,69385.0,69374.0,0.0720722]
[1771126815611,0.44187133,69385.0,69374.0,0.0720722]
[1771126815932,0.07306471,69383.0,69373.0,0.07207399]
[1771126816095,0.07306471,69383.0,69371.0,0.07254514]
[1771126816458,0.07206471,69383.0,69373.0,0.07207314]
[1771126816597,0.07206482,69382.0,69373.0,0.07207314]
[1771126816785,0.07206272,69384.0,69372.0,0.07207518]
[1771126816993,0.07206272,69384.0,69374.0,0.07207305]
[1771126816994,0.07206389,69383.0,69374.0,0.07207305]
[1771126817197,4e-05,69378.0,69374.0,0.07207305]
[1771126817418,4e-05,69378.0,69377.0,0.07206999]
[1771126817619,4e-05,69378.0,69376.0,0.07207087]
[1771126817849,0.00013056,69384.0,69377.0,0.07206999]
[1771126818073,0.00013056,69384.0,69376.0,0.07207087]
[1771126818217,0.09228,69398.0,69389.0,0.07205753]
[1771126818424,0.09228,69398.0,69383.0,0.07467907]
[1771126818425,0.29488,69398.0,69387.0,0.07467907]
[1771126818647,0.02464863,69405.0,69380.0,0.00012]
[1771126818648,0.34132,69405.0,69396.0,2e-08]
[1771126818868,0.34145076,69405.0,69390.0,0.00012]
[1771126819041,0.07205671,69390.0,69380.0,0.00012]
[1771126819254,0.07205859,69388.0,69380.0,0.00012]
[1771126819455,0.004,69390.0,69382.0,0.07206454]
[1771126819678,0.07205678,69390.0,69380.0,0.00012]
[1771126820085,0.07205559,69391.0,69382.0,0.07206449]
[1771126820295,0.07205643,69392.0,69381.0,0.07206524]
[1771126820438,0.00012,69380.0,69362.0,0.0720853]
[1771126820670,0.02476863,69370.0,69359.0,0.0002]
[1771126820873,0.07208569,69362.0,69359.0,0.0002]
[1771126821178,0.02464863,69369.0,69359.0,0.0002]
[1771126821366,0.00012,69370.0,69359.0,0.0002]
[1771126821573,0.00012,69370.0,69359.0,0.07272391]
[1771126821986,0.001,69362.0,69360.0,0.07208761]
[1771126822298,0.07206379,69383.0,69362.0,0.02031903]
[1771126822519,0.07206516,69382.0,69372.0,0.07207496]
[1771126822720,0.07206516,69382.0,69373.0,0.07207401]
[1771126823044,0.07206383,69383.0,69371.0,0.14675456]
[1771126823336,4e-05,69372.0,69371.0,0.14647529]
[1771126824624,4e-05,69372.0,69371.0,0.15047529]
[1771126825011,4e-05,69372.0,69371.0,0.14647529]
[1771126825212,4e-05,69372.0,69371.0,0.15347529]
[1771126825402,4e-05,69372.0,69371.0,0.14647529]
[1771126825821,4e-05,69372.0,69371.0,0.15347529]
[1771126826062,4e-05,69372.0,69371.0,0.14647529]
[1771126826235,4e-05,69372.0,69368.0,0.07207908]
[1771126826453,4e-05,69372.0,69360.0,0.00012]
[1771126826654,4e-05,69372.0,69366.0,0.0720813]
[1771126827188,4e-05,69372.0,69366.0,0.07208113]
[1771126827401,4e-05,69372.0,69360.0,0.36314627]
[1771126827402,4e-05,69372.0,69362.0,0.28834199]
[1771126827588,4e-05,69372.0,69364.0,0.0720835]
[1771126827744,4e-05,69372.0,69371.0,0.004]
[1771126828150,4e-05,69376.0,69361.0,0.02031903]
[1771126828354,4e-05,69376.0,69372.0,0.07207502]
[1771126828896,4e-05,69376.0,69375.0,0.07207207]
[1771126829479,5e-05,69381.0,69377.0,0.07206999]
[1771126829694,5e-05,69381.0,69378.0,0.07206878]
[1771126830271,5e-05,69383.0,69379.0,0.07206791]
[1771126830491,5e-05,69383.0,69382.0,0.0720648]
[1771126830869,0.07807968,69392.0,69370.0,0.00012]
[1771126830870,0.00012,69400.0,69373.0,0.34340664]
[1771126831072,0.00012,69400.0,69399.0,0.07204714]